Cogmind - Beta 15 @@@ ROGUE MODE // 2025.08.31 @ 20:11:52 Player: MadBadger Result: Destroyed by GA-J84(R) with Subdweller Laser Performance ------------- Evolutions (0) 0 Regions Visited (2) 400 Robots Destroyed (14) 70 Value Destroyed (378) 378 Prototype IDs (0) 0 Alien Tech Used (0) 0 Bonus (0) 0 TOTAL SCORE: 848 Bonus ------- None Cogmind --------- Core Integrity 0/250 Matter 10/300 Energy 100/100 System Corruption 1% Temperature Cool (6) Movement Core (150) Ox2 Location -10/Subcaves Parts ------- > --- POWER (1) -------- (None) > --- PROPULSION (2) --- (None) > --- UTILITY (2) ------ Small Storage Unit > --- WEAPON (2) ------- Heavy Assault Rifle > --- INVENTORY (8) ---- Light Treads Light Treads Medium Laser Assault Rifle Rocket Launcher Rocket Launcher Peak State ------------ > --- POWER ------------ Ion Engine > --- PROPULSION ------- Wheel Compact Wheel > --- UTILITY ---------- Small Storage Unit Medium Armor Plating > --- WEAPON ----------- Heavy Assault Rifle Heavy Assault Rifle > --- INVENTORY -------- Light Treads Light Treads Medium Laser Assault Rifle Heavy Assault Rifle Heavy Assault Rifle Rocket Launcher Rocket Launcher [Rating: 11] Favorites ----------- Power Ion Engine Engine Ion Engine Propulsion Compact Wheel Wheel Compact Wheel Utility Small Storage Unit Storage Small Storage Unit Protection Medium Armor Plating Weapon Heavy Assault Rifle Energy Gun Medium Laser Ballistic Gun Heavy Assault Rifle Launcher Rocket Launcher Build | -11 -10 -10 ------- Run | Yrd Mat Sub Slots Evolved . | . . . Power . | . . . Propulsion . | . . . Utility . | . . . Weapon . | . . . Parts Attached 14 | 7 5 2 Power 2 | 2 . . Engine 2 | 2 . . Core . | . . . Reactor . | . . . Propulsion 3 | 2 1 . Treads . | . . . Leg . | . . . Wheel 3 | 2 1 . Hover . | . . . Flight . | . . . Utility 2 | 1 1 . Device . | . . . Storage 1 | 1 . . Processor . | . . . Hackware . | . . . Protection 1 | . 1 . Artifact . | . . . Weapon 7 | 2 3 2 Energy Gun 1 | 1 . . Energy Cannon . | . . . Ballistic Gun 5 | 1 3 1 Ballistic Cannon . | . . . Launcher 1 | . . 1 Special Weapon . | . . . Impact Weapon . | . . . Slashing Weapon . | . . . Piercing Weapon . | . . . Special Melee Weapon . | . . . Unidentified Prototypes . | . . . Parts Lost 8 | . 3 5 Power 1 | . 1 . Propulsion 3 | . 1 2 Utility 1 | . . 1 Weapon 3 | . 1 2 Highest Loss Streak 3 | . 1 3 To Critical Strikes . | . . . Average Backups 6 | 1 6 6 Power . | . . . Propulsion 1 | 1 2 2 Utility . | . . . Weapon 3 | . 3 4 Tool/Special . | . . . Unused Backups 4 | . . 4 Power . | . . . Propulsion 2 | . . 2 Utility . | . . . Weapon 2 | . . 2 Tool/Special . | . . . Average Slot Usage (%) 80 | . 89 70 Engine 6 | . 12 . Wheel 26 | . 26 26 Storage 14 | . 14 14 Protection 5 | . 8 2 Energy Gun 2 | . 4 . Ballistic Gun 21 | . 22 19 Launcher 3 | . . 6 Peak Build Rating 11 | 6 11 10 Average Rating 7 | 4 8 7 On Entrance 5 | . 6 10 Naked Turns . | . . . Heaviest Build 23 | 14 23 18 Greatest Support 26 | 26 26 26 Greatest Overweight (x) 3 | 2 1 3 Average Overweight (x) . | . . . Largest Inventory Capacity 8 | 8 8 8 Average Capacity 7 | 7 8 8 Most Carried 8 | 4 8 7 Average Carried 6 | 2 6 6 Final Capacity 8 | 8 8 8 Final Carried 7 | 4 7 6 Class Distribution -------------------- 100% | Mutant Dominant Class ---------------- Mutant | -10/Materials Mutant | -10/Subcaves Resources | -11 -10 -10 ----------- Run | Yrd Mat Sub Matter Collected 579 | 140 397 42 Remotely . | . . . Salvage Created 424 | . 367 57 Parts 32 | . 28 4 Haulers Intercepted . | . . . Recyclers Shooed 1 | . 1 . Parts Field Recycled . | . . . Retrieved Matter . | . . . Parts Self-Destructed 5 | . . 5 Prevented . | . . . Kills | -11 -10 -10 ------- Run | Yrd Mat Sub Combat Hostiles Destroyed 11 | . 9 2 Guns 10 | . 9 1 AOE 1 | . . 1 Classes Destroyed 7 | . 5 2 Builder 1 | . 1 . Tunneler 1 | . 1 . Watcher 1 | . 1 . Swarmer 3 | . 3 . Grunt 6 | . 6 . Artisan 1 | . . 1 Subdweller 2 | . . 2 Best Kill Streak 5 | . 5 1 Combat Bots Only 4 | . 4 1 Max Kills in Single Turn 1 | . 1 1 Gunslinging . | . . . Exploded 1 | . . 1 Melee . | . . . Uniques/NPCs Destroyed . | . . . Combat | -11 -10 -10 -------- Run | Yrd Mat Sub Hostile Shots Fired 98 | . 66 32 Missed 21 | . 14 7 Hits 77 | . 52 25 Projectile 77 | . 52 25 Damage Taken 1102 | . 587 515 Core 267 | . 98 169 Absorbed by Shields . | . . . Core Remaining (%) 100 | 100 . . Volleys Fired 91 | . 48 43 Largest 2 | . 2 2 Hottest 70 | . 70 56 Shots Fired 161 | . 92 69 Gun 147 | . 92 55 Cannon . | . . . Launcher 14 | . . 14 Special . | . . . Kinetic 135 | . 80 55 Thermal 12 | . 12 . Explosive 14 | . . 14 Electromagnetic . | . . . Robot Hit Streak 7 | . 7 7 Robot Miss Streak 3 | . 3 2 Penetration Max . | . . . Secondary Targets . | . . . Shots Hit Robots 82 | . 53 29 Core Hits 23 | . 18 5 Critical Kills 1 | . 1 . Critical Parts Destroyed . | . . . Critical Strikes 1 | . 1 . Destroy 1 | . 1 . Melee Attacks . | . . . Impact . | . . . Slashing . | . . . Piercing . | . . . Sneak Attacks . | . . . Combat Hostiles . | . . . Follow-up Attacks . | . . . Damage Inflicted 1197 | . 787 410 Guns 952 | . 787 165 Cannons . | . . . Explosions 245 | . . 245 Melee . | . . . Ramming . | . . . Kinetic 889 | . 724 165 Thermal 63 | . 63 . Explosive 245 | . . 245 Electromagnetic . | . . . Impact . | . . . Slashing . | . . . Piercing . | . . . Highest Corruption 1 | . 1 1 Average Corruption 1 | . 1 1 Corruption Purged . | . . . Corruption Blocked . | . . . Effects 4 | . 2 2 Message Errors 2 | . 1 1 Heat Flow Errors 1 | . . 1 Misfires 1 | . 1 . Overload Shots . | . . . Overflow Damage . | . . . Projectiles . | . . . Explosions . | . . . Melee . | . . . Knockbacks . | . . . Impact . | . . . Kinetic . | . . . Secondary . | . . . Self-Inflicted Damage . | . . . Shots . | . . . Rammed . | . . . Targets Rammed . | . . . Kicked . | . . . Crushed . | . . . Highest Temperature 249 | . 39 249 Average Temperature 19 | . 12 136 Received Heat Transfer 405 | . 267 138 Siege Activations . | . . . Martial Activations . | . . . Shielding Activations . | . . . Robots Disrupted . | . . . Combat Hostiles . | . . . Robots Corrupted . | . . . Combat Hostiles . | . . . Parts Fried . | . . . Impact Corruptions . | . . . Robots Melted . | . . . Combat Hostiles . | . . . Parts Melted . | . . . Heat Transferred 185 | . 185 . Parts Sabotaged . | . . . Parts Stolen . | . . . Parts Stripped . | . . . Power Chain Reactions . | . . . Alert | -11 -10 -10 ------- Run | Yrd Mat Sub Maximum Alert Level . | . . . Low Security (%) 100 | 100 100 . Level 1 . | . . . Level 2 . | . . . Level 3 . | . . . Level 4 . | . . . Level 5 . | . . . High Security . | . . . Max Security . | . . . Peak Influence 117 | . 117 . Initial . | . . . Average 39 | . 44 . Influence Increases 294 | . 294 . Destroy 0b10 Robot/C 180 | . 180 . Destroy 0b10 Robot/NC 15 | . 15 . Destroy Leader 52 | . 52 . Disable Machine 15 | . 15 . Destroy Structure 2 | . 2 . Lose Combat Pursuer 30 | . 30 . Influence Decreases 294 | . 221 73 Entered New Map 36 | . . 36 Time Decay 238 | . 201 37 Lost Part 20 | . 20 . Squads Dispatched 3 | . 3 . Investigation . | . . . Extermination . | . . . Reinforcement 3 | . 3 . Assault . | . . . Garrison . | . . . Intercept . | . . . Searches Triggered . | . . . Construction Impeded . | . . . Haulers Reinforced . | . . . Active Scanning Responses . | . . . Cargo Convoy Interrupts . | . . . Stealth | -11 -10 -10 --------- Run | Yrd Mat Sub Distress Signals 1 | . 1 . Communications Jammed . | . . . Distress Signals . | . . . Times Spotted 25 | . 22 3 Peak Tracking Total 5 | . 5 1 Tactical Retreats 2 | . 2 . Traps | -11 -10 -10 ------- Run | Yrd Mat Sub Traps Triggered 1 | . 1 . Indirectly . | . . . Trap Hack Attempts . | . . . Triggered . | . . . Disarmed . | . . . Reprogrammed . | . . . Reused . | . . . Traps Extracted . | . . . Installed . | . . . Triggered . | . . . Machines | -11 -10 -10 ---------- Run | Yrd Mat Sub Machines Disabled 1 | . 1 . Max in Single Turn 1 | . 1 . Machines Repaired . | . . . Machines Dismantled . | . . . Machines Sabotaged . | . . . Overloaded Fab Kills . | . . . Hacking | -11 -10 -10 --------- Run | Yrd Mat Sub Machines Accessed . | . . . Terminals . | . . . Fabricators . | . . . Repair Stations . | . . . Recycling Units . | . . . Scanalyzers . | . . . Garrison Access . | . . . Total Hacks . | . . . Successful . | . . . Failed . | . . . Catastrophic . | . . . Database Lockouts . | . . . Manual . | . . . Terminals . | . . . Fabricators . | . . . Repair Stations . | . . . Recycling Units . | . . . Scanalyzers . | . . . Garrison Access . | . . . Terminal Hacks . | . . . Fabricator Hacks . | . . . Repair Station Hacks . | . . . Recycling Unit Hacks . | . . . Scanalyzer . | . . . Garrison Access Hacks . | . . . Unauthorized Hacks . | . . . Terminals . | . . . Fabricators . | . . . Repair Stations . | . . . Recycling Units . | . . . Scanalyzers . | . . . Garrison Access . | . . . Data Cores Recovered . | . . . Used . | . . . Hacking Detections . | . . . Full Trace Events . | . . . Feedback Events . | . . . Feedback Blocked . | . . . Robot Schematics Acquired . | . . . Robots Built . | . . . Authchips . | . . . Time . | . . . Total Robot Build Rating . | . . . Part Schematics Acquired . | . . . Parts Built . | . . . Authchips . | . . . Time . | . . . Total Part Build Rating . | . . . Parts Repaired . | . . . Time . | . . . Parts Recycled . | . . . Recycled Matter . | . . . Retrieved Matter . | . . . Retrieved Components . | . . . Parts Scanalyzed . | . . . Part Schematics Acquired . | . . . Parts Damaged . | . . . Bothacking | -11 -10 -10 ------------ Run | Yrd Mat Sub Used RIF Installer . | . . . Robots Hacked . | . . . Non-combat . | . . . Combat . | . . . Robot Hacks Applied . | . . . Relay Couplers Released . | . . . Fabnet Peak Effective % . | . . . Robots Rewired . | . . . Allies Hacked . | . . . Hacks Repelled . | . . . Allies | -11 -10 -10 -------- Run | Yrd Mat Sub Total Allies . | . . . Largest Group . | . . . Highest-Rated Group . | . . . Highest-Rated Ally . | . . . Total Orders . | . . . Ally Attacks . | . . . Total Damage . | . . . Kills . | . . . Allies Corrupted . | . . . Allies Melted . | . . . Intel | -11 -10 -10 ------- Run | Yrd Mat Sub Active Infowar (turns) . | . . . Robot Analysis Total . | . . . Derelict Logs Recovered . | . . . Drone Launches . | . . . Drone Recoveries . | . . . Exploration | -11 -10 -10 ------------- Run | Yrd Mat Sub Turns Passed 1137 | 64 535 538 Spaces Moved 863 | 56 348 459 Core 11 | 4 . 7 Treads . | . . . Legs . | . . . Wheels 852 | 52 348 452 Hover . | . . . Flight . | . . . Fastest Speed 50 | 50 90 90 Average Speed 91 | 90 91 91 Slowest Speed 200 | 150 115 200 Overloaded Moves . | . . . Propulsion Burnouts . | . . . Robots Hopped . | . . . Potential Cave-ins 3 | . . 3 Cave-ins Triggered . | . . . Exploration Rate (%) 32 | 4 73 20 Regions Visited 2 Branch Regions 1 Pre-discovered Areas . | . . . Known Exits Taken . | . . . Unknown Exits Taken 2 | 1 1 . Scrap Searched . | . . . Spaces Dug 12 | . . 12 Terrain Destroyed 66 | . . 66 Melee . | . . . Projectile . | . . . AOE 66 | . . 66 Terrain Rammed . | . . . Walls Destroyed . | . . . Machines Disabled . | . . . Actions | -11 -10 -10 --------- Run | Yrd Mat Sub Total 1049 | 65 473 511 Wait 70 | . 66 4 Move 861 | 55 347 459 Hop . | . . . Pick Up 7 | 3 4 . Fast Attach 9 | 6 3 . Attach 4 | . 1 3 Detach 3 | . 1 2 Swap 2 | 1 1 . Drop 2 | . 2 . Fire 91 | . 48 43 Melee . | . . . Ram . | . . . Kick . | . . . Crush . | . . . Escape Stasis . | . . . Rewire . | . . . Trap . | . . . Miscellaneous . | . . . Route ------- -11/Scrapyard -10/Materials (discovered 3 exits: [*Mat] / [*Min] / [*Sub]) -10/Subcaves History --------- Turn | Location | Event 22 | -11/Scrapyard | Discovered new exit (range 15) 65 | -11/Scrapyard | Entered Materials 137 | -10/Materials | Discovered new exit (range 6) 308 | -10/Materials | Build established: Mutant 393 | -10/Materials | Discovered new exit (range 16) 590 | -10/Materials | Discovered new exit (range 9) 600 | -10/Materials | Entered Subcaves 980 | -10/Subcaves | Ambushed by angry Subdweller bent on revenge 1097 | -10/Subcaves | Core integrity fell below 50% 1119 | -10/Subcaves | Core integrity fell below 20% 1138 | -10/Subcaves | Destroyed by GA-J84(R) with Subdweller Laser Last Messages --------------- 00903_ 8F-W8C(u) builds Twisted Machinery. 00924_ The unstable cave ceiling collapses. 00925_ 8F-W8C(u) builds Twisted Machinery. 00929_ The unstable cave ceiling collapses. 00958_ 8F-W8C(u) builds Twisted Machinery. 00974_ 8F-W8C(u) cries out in pain. 00974_ 8F-W8C(u) destroyed. 00980_ L3-8VF(R) angrily emerges from the Twisted Machinery. 00980_ L3-8VF(R): "OHNO!" 00980_ Subatomizers dissect the Wheel. 00981_ The unstable cave ceiling collapses. 00989_ L3-8VF(R) destroyed. 00990_ Subatomizers dissect the Wheel. 01001_ Acquired 2 matter. 01020_ The unstable cave ceiling collapses. 01110_ Com. Wheel destroyed. 01116_ Wheel destroyed. 01120_ Hvy. Assault Rifle destroyed. 01137_ GA-J84(R) affixes Scrap Shield Fragment to Scrap Shield. 01138_ The unstable cave ceiling collapses. Map ----- +----------------------------------------------------+ | ?????????????????????????????????????????????????? | | ?????????????????????????????????????????????????? | | ?????????????????????????????????????????????????? | | ?????????????????????????????????????????????????? | | ?????????????????????????????????????????????????? | | ?????????????????????????????????????????????????? | | ?????????????????????????????????????????????????? | | ?????????????????????????????????????????????????? | | ?????????????????????????????????????????????????? | | ?????????????????????????????????????????????????? | | ?????????????????????????????????????????????###?? | | ?????????????????????????????????????????????# ## | | ??????????????????##############?????????????# | | ?????????????????##$ " "" <##????????????# | | ?????????????????# """< #????????????# | | ?????????????????# $ " " <<#????????????## | | ??????????????????"$ $ " < #?????????????#### | | ???????????????????" $ $ <##??????????????## | | ??????????????????????"" " #?????????????## | | ????????????????????????# # <##???????????### | | ?????????????????????##### #??????????## | | ?????????????????????# # ##??????????# | | ?????????????????????## R & #???????????# | | ?????????????????????#< #???????????#### | | ???????????????????###< # ###??????????????# | | ?????????????????### < @ ## #?????????????## | | ????????????????## ##?###????????# | | ??????##????????# ## ### ###???#### | | ??????#" ##?##### # ##??# # # | | ?????##""""## # ##### #??# | | ????? """"" ##??# #### #?## | | ????? """"" #??# ###?## ### | | ??????"""""# ## ## ##??## ## ##### | | ??????"""""####### ### ##???# #???? | | ?????? ##"??????####?###????# ##???? | | ??????##?##??????????????????########## ###????? | | ??????????????????????????????????????#####??????? | | ?????????????????????????????????????????????????? | | ?????????????????????????????????????????????????? | | ?????????????????????????????????????????????????? | | ?????????????????????????????????????????????????? | | ?????????????????????????????????????????????????? | | ?????????????????????????????????????????????????? | | ?????????????????????????????????????????????????? | | ?????????????????????????????????????????????????? | | ?????????????????????????????????????????????????? | | ?????????????????????????????????????????????????? | | ?????????????????????????????????????????????????? | | ?????????????????????????????????????????????????? | | ?????????????????????????????????????????????????? | +----------------------------------------------------+ Best States ------------- Heat Dissipation 25 Energy Generation 10 Energy Capacity 250 Matter Stores 300 Matter Capacity 300 Sight Range 16 Terrain Scan Density 10 Armor Coverage 225 Evasion (%) 42 Item Schematics ----------------- None Robot Schematics ------------------ None Fabricated ------------ Nothing Repaired ---------- Nothing Alien Tech Used ----------------- None Achievements -------------- None Challenges ------------ None Game ------ Seed ReinforcedArmageddonMace Manual? 0 Play Time 00:12:44 Cumulative 26.6 hours Start 2025.08.31 @ 19:45:39 End 2025.08.31 @ 20:11:52 Sessions 1 Manual Loads 0 Difficulty Rogue Special Mode None Game No. 56 Rogue 56 Adventurer 0 Explorer 0 Win Type - Total 0 Types 0/0/0/0/0/0/0/0/0/0 Lore% 10 Gallery% 16 Achievement% 16 Wizard Run 0 Options --------- Layout 0 ASCII 0 Keyboard 1 Movement Numpad Keybinds 0 Fullscreen 2 Font 24/Smallcaps Map View 76x50 Zoom Use 0% Tactical HUD 1 Map Filters NONE Filters NONE Steam 1 RUN: 6ce22203-694f-435c-a781-dfc105343f29